fUST/lending_fUST_20250627
["ID","MTS","AMOUNT","RATE_DAILY","PERIOD"]
[367899743,1750959040469,-500.0,0.00021643,2]
[367899745,1750959040478,-460.0,0.00021643,2]
[367899747,1750959040487,-500.0,0.00021643,2]
[367899749,1750959040496,-500.0,0.00021643,2]
[367899751,1750959040506,-500.0,0.00021643,2]
[367899753,1750959040515,-500.0,0.00021643,2]
[367899755,1750959040524,-500.0,0.00021643,2]
[367899757,1750959040533,-485.84,0.00021643,2]
[367899759,1750959040543,-460.0,0.00021643,2]
[367899761,1750959040553,-463.41855818,0.00021643,2]
[367899763,1750959040562,-2191.66,0.00021643,2]
[367899765,1750959040571,-589.81,0.00021643,2]
[367899767,1750959040580,-460.0,0.00021643,2]
[367899769,1750959040589,-665.96,0.00021643,2]
[367899771,1750959040599,-486.64,0.00021643,2]
[367899773,1750959040608,-535.98,0.00021643,2]
[367899775,1750959040616,-460.0,0.00021643,2]
[367899777,1750959040625,-460.0,0.00021643,2]
[367899779,1750959040634,-460.0,0.00021643,2]
[367899781,1750959040643,-460.0,0.00021643,2]
[367899782,1750959040653,-460.0,0.00021643,2]
[367899785,1750959040662,-1334.17,0.00021643,2]
[367899787,1750959040672,-460.0,0.00021643,2]
[367899789,1750959040681,-460.0,0.00021643,2]
[367899791,1750959040690,-460.0,0.00021643,2]
[367899793,1750959040700,-460.0,0.00021643,2]
[367899794,1750959040709,-460.0,0.00021643,2]
[367899796,1750959040718,-460.98571758,0.00021643,2]
[367899798,1750959040726,-460.0,0.00021643,2]
[367899800,1750959040735,-460.0,0.00021643,2]
[367899802,1750959040745,-460.0,0.00021643,2]
[367899804,1750959040754,-460.0,0.00021643,2]
[367899806,1750959040763,-460.0,0.00021643,2]
[367899808,1750959040772,-460.0,0.00021643,2]
[367899810,1750959040782,-460.0,0.00021643,2]
[367899812,1750959040792,-460.0,0.00021643,2]
[367899814,1750959040801,-500.0,0.00021643,2]
[367899816,1750959040811,-460.0,0.00021643,2]
[367899818,1750959040819,-500.0,0.00021643,2]
[367899820,1750959040829,-560.46,0.00021643,2]
[367899822,1750959040838,-647.13,0.00021643,2]
[367899824,1750959040847,-460.0,0.00021643,2]
[367899826,1750959040856,-460.0,0.00021643,2]
[367899828,1750959040865,-460.0,0.00021643,2]
[367899830,1750959040875,-2397.01,0.00021643,2]
[367899832,1750959040883,-460.0,0.00021643,2]
[367899834,1750959040893,-460.0,0.00021643,2]
[367899836,1750959040902,-460.0,0.00021643,2]
[367899838,1750959040911,-460.0,0.00021643,2]
[367899840,1750959040920,-460.0,0.00021643,2]
[367899842,1750959040929,-460.0,0.00021643,2]
[367899844,1750959040938,-460.0,0.00021643,2]
[367899846,1750959040947,-1163.42,0.00021643,2]
[367899848,1750959040956,-460.0,0.00021643,2]
[367899850,1750959040966,-460.0,0.00021643,2]
[367899852,1750959040975,-460.0,0.00021643,2]
[367899854,1750959040984,-460.0,0.00021643,2]
[367899856,1750959040993,-460.0,0.00021643,2]
[367899858,1750959041002,-601.32,0.00021643,2]
[367899860,1750959041012,-460.0,0.00021643,2]
[367899862,1750959041021,-668.88,0.00021643,2]
[367899864,1750959041030,-460.0,0.00021643,2]
[367899866,1750959041039,-460.0,0.00021643,2]
[367899868,1750959041048,-500.0,0.00021643,2]
[367899870,1750959041057,-500.0,0.00021643,2]
[367899872,1750959041066,-500.0,0.00021643,2]
[367899874,1750959041076,-500.0,0.00021643,2]
[367899876,1750959041085,-3173.49,0.00021643,2]
[367899878,1750959041096,-500.0,0.00021643,2]
[367899880,1750959041105,-500.0,0.00021643,2]
[367899882,1750959041114,-500.0,0.00021643,2]
[367899884,1750959041123,-500.0,0.00021643,2]
[367899886,1750959041132,-500.0,0.00021643,2]
[367899888,1750959041141,-460.0,0.00021643,2]
[367899890,1750959041150,-460.0,0.00021643,2]
[367899892,1750959041159,-460.0,0.00021643,2]
[367899894,1750959041168,-485.14,0.00021643,2]
[367899896,1750959041178,-1074.01,0.00021643,2]
[367899898,1750959041187,-694.33,0.00021643,2]
[367899900,1750959041196,-460.0,0.00021643,2]
[367899902,1750959041204,-460.0,0.00021643,2]
[367899904,1750959041214,-460.0,0.00021643,2]
[367899906,1750959041223,-460.0,0.00021643,2]
[367899908,1750959041232,-460.0,0.00021643,2]
[367899909,1750959041241,-1243.99,0.00021643,2]
[367899911,1750959041250,-519.67,0.00021643,2]
[367899912,1750959041259,-688.04,0.00021643,2]
[367899913,1750959041268,-567.8,0.00021643,2]
[367899914,1750959041277,-436.96312873,0.00021643,2]
[367899915,1750959041286,-460.0,0.00021643,2]
[367899916,1750959041295,-468.87,0.00021643,2]
[367899918,1750959041304,-460.0,0.00021643,2]
[367899920,1750959041314,-460.0,0.00021643,2]
[367899922,1750959041323,-447.36223661,0.00021643,2]
[367899924,1750959041333,-460.0,0.00021643,2]
[367899926,1750959041342,-460.0,0.00021643,2]
[367899928,1750959041351,-460.0,0.00021643,2]
[367899930,1750959041360,-566.88,0.00021643,2]
[367899931,1750959041370,-460.0,0.00021643,2]
[367899933,1750959041379,-460.0,0.00021643,2]
[367899935,1750959041388,-500.0,0.00021643,2]
[367899937,1750959041398,-1499.87,0.00021643,2]
[367899939,1750959041407,-460.0,0.00021643,2]
[367899941,1750959041416,-580.98281249,0.00021643,2]
[367899943,1750959041425,-410.44351872,0.00021643,2]
[367899945,1750959041434,-460.0,0.00021643,2]
[367899947,1750959041444,-460.0,0.00021643,2]
[367899949,1750959041454,-492.18,0.00021643,2]
[367899951,1750959041463,-460.0,0.00021643,2]
[367899953,1750959041472,-460.0,0.00021643,2]
[367899955,1750959041481,-460.0,0.00021643,2]
[367899957,1750959041490,-460.0,0.00021643,2]
[367899959,1750959041500,-3219.5,0.00021643,2]
[367899961,1750959041508,-460.0,0.00021643,2]
[367899963,1750959041518,-460.0,0.00021643,2]
[367899965,1750959041527,-460.0,0.00021643,2]
[367899967,1750959041536,-460.0,0.00021643,2]
[367899969,1750959041546,-460.0,0.00021643,2]
[367899971,1750959041555,-434.67464137,0.00021643,2]
[367899973,1750959041565,-460.0,0.00021643,2]
[367899975,1750959041574,-228.7661709,0.00021643,2]
[367899977,1750959041583,-460.0,0.00021643,2]
[367899979,1750959041592,-460.0,0.00021643,2]
[367899981,1750959041601,-434.31898164,0.00021643,2]
[367899983,1750959041610,-460.0,0.00021643,2]
[367899985,1750959041620,-460.0,0.00021643,2]
[367899987,1750959041629,-460.0,0.00021643,2]
[367899989,1750959041639,-649.77,0.00021643,2]
[367899991,1750959041647,-460.0,0.00021643,2]
[367899993,1750959041656,-967.31,0.00021643,2]
[367899995,1750959041665,-460.0,0.00021643,2]
[367899997,1750959041675,-460.0,0.00021643,2]
[367899999,1750959041683,-1902.0,0.00021643,2]
[367900001,1750959041693,-460.0,0.00021643,2]
[367900003,1750959041702,-460.0,0.00021643,2]
[367900005,1750959041711,-460.0,0.00021643,2]
[367900007,1750959041720,-1864.12,0.00021643,2]
[367900009,1750959041729,-479.8950424,0.00021643,2]
[367900011,1750959041738,-460.0,0.00021643,2]
[367900013,1750959041747,-772.41,0.00021643,2]
[367900015,1750959041756,-2693.95,0.00021643,2]
[367900017,1750959041765,-460.0,0.00021643,2]
[367900019,1750959041774,-460.0,0.00021643,2]
[367900021,1750959041785,-460.0,0.00021643,2]
[367900023,1750959041795,-515.12,0.00021643,2]
[367900025,1750959041804,-460.0,0.00021643,2]
[367900027,1750959041814,-460.0,0.00021643,2]
[367900029,1750959041823,-460.0,0.00021643,2]
[367900031,1750959041832,-151.0,0.000217,4]
[367900033,1750959041842,-151.0,0.000217,4]
[367900035,1750959041851,-245.6856227,0.00021773,2]
[367900037,1750959041862,-501.07557052,0.00021773,2]
[367900039,1750959041872,-500.0,0.00021773,2]
[367900054,1750959042005,-500.0,0.00021773,2]
[367900056,1750959042015,-500.0,0.00021773,2]
[367900058,1750959042024,-500.0,0.00021773,2]
[367900060,1750959042034,-127742.60349665,0.0002178,2]
[367900062,1750959042043,-1721.010829,0.0002178,5]
[367900064,1750959042052,-2444.06843431,0.00021797,6]
[367900066,1750959042061,-1000.0,0.000218,5]
[367900068,1750959042070,-151.0,0.000218,3]
[367900070,1750959042080,-151.0,0.000218,3]
[367900072,1750959042089,-1000.0,0.0002182,5]
[367900074,1750959042098,-1000.0,0.0002184,5]
[367900076,1750959042109,-1000.0,0.0002186,5]
[367900078,1750959042118,-1000.0,0.00021878,2]
[367900080,1750959042127,-1000.0,0.00021878,2]
[367900082,1750959042136,-500.0,0.00021879,2]
[367900084,1750959042146,-500.0,0.00021879,2]
[367900086,1750959042155,-500.0,0.00021879,2]
[367900088,1750959042164,-500.0,0.00021879,2]
[367900090,1750959042173,-1000.0,0.0002188,5]
[367900092,1750959042182,-500.0,0.00021887,2]
[367900094,1750959042192,-500.0,0.00021887,2]
[367900096,1750959042201,-1000.0,0.00021888,2]
[367900098,1750959042210,-1000.0,0.00021888,2]
[367900100,1750959042219,-1000.0,0.00021888,2]
[367900102,1750959042228,-500.0,0.00021889,2]
[367900104,1750959042237,-500.0,0.00021889,2]
[367900106,1750959042247,-151.0,0.00021889,10]
[367900108,1750959042256,-200.10080426,0.00021889,2]
[367900110,1750959042265,-500.0,0.00021889,2]
[367900112,1750959042275,-500.0,0.00021889,2]
[367900114,1750959042284,-151.0,0.00021899,2]
[367900116,1750959042294,-1000.0,0.00021899,2]
[367900118,1750959042303,-1000.0,0.00021899,2]
[367900120,1750959042313,-1000.0,0.00021899,2]
[367900122,1750959042322,-1000.0,0.00021899,2]
[367900124,1750959042331,-1000.0,0.00021899,2]
[367900126,1750959042341,-1000.0,0.00021899,2]
[367900128,1750959042350,-1000.0,0.00021899,2]
[367900130,1750959042359,-1000.0,0.00021899,2]
[367900132,1750959042369,-500.0,0.00021899,2]
[367900134,1750959042378,-500.0,0.00021899,2]
[367900136,1750959042387,-555.34446697,0.00021899,2]
[367900138,1750959042396,-500.0,0.00021899,2]
[367900141,1750959042405,-500.0,0.00021899,2]
[367900143,1750959042415,-500.0,0.00021899,2]
[367900146,1750959042424,-500.0,0.00021899,2]
[367900148,1750959042433,-500.0,0.00021899,2]
[367900151,1750959042443,-500.0,0.00021899,2]
[367900153,1750959042451,-7920.93743561,0.000219,3]
[367900158,1750959042461,-428.07699325,0.000219,2]
[367900162,1750959042471,-200.0,0.000219,3]
[367900166,1750959042480,-1000.0,0.000219,5]
[367900170,1750959042489,-151.0,0.000219,3]
[367900172,1750959042500,-151.0,0.000219,4]
[367900175,1750959042509,-213.72380786,0.000219,3]
[367900180,1750959042519,-160.0,0.000219,3]
[367900182,1750959042528,-160.0,0.000219,3]
[367900186,1750959042538,-12556.00642039,0.000219,3]
[367900189,1750959042547,-846.92323443,0.000219,3]
[367900191,1750959042556,-7516.11865376,0.000219,2]
[367900195,1750959042565,-651.32424459,0.000219,2]
[367900199,1750959042575,-2612.01,0.000219,2]
[367900202,1750959042584,-151.0,0.00021916,10]
[367900205,1750959042593,-1714.67675185,0.00021917,2]
[367900208,1750959042602,-203.93926588,0.00021917,2]
[367900211,1750959042612,-460.0,0.00021917,2]
[367900214,1750959042621,-460.0,0.00021917,2]
[367900217,1750959042631,-430.0,0.00021917,2]
[367900220,1750959042640,-571.14,0.00021917,2]
[367900223,1750959042649,-460.0,0.00021917,2]
[367900226,1750959042658,-500.0,0.00021917,2]
[367900229,1750959042667,-500.0,0.00021917,2]
[367900232,1750959042677,-465.47858194,0.00021917,2]
[367900235,1750959042686,-460.0,0.00021917,2]
[367900238,1750959042696,-460.0,0.00021917,2]
[367900241,1750959042706,-460.0,0.00021917,2]
[367900243,1750959042715,-460.0,0.00021917,2]
[367900246,1750959042724,-460.0,0.00021917,2]
[367900249,1750959042733,-241.13834208,0.00021917,2]
[367900251,1750959042742,-460.0,0.00021917,2]
[367900253,1750959042752,-461.87243434,0.00021917,2]
[367900255,1750959042762,-460.62509477,0.00021917,2]
[367900257,1750959042771,-460.0,0.00021917,2]
[367900259,1750959042780,-460.0,0.00021917,2]
[367900261,1750959042791,-460.0,0.00021917,2]
[367900263,1750959042800,-460.0,0.00021917,2]
[367900265,1750959042809,-430.0,0.00021917,2]
[367900267,1750959042818,-460.0,0.00021917,2]
[367900269,1750959042827,-460.0,0.00021917,2]
[367900271,1750959042836,-460.0,0.00021917,2]
[367900273,1750959042846,-460.0,0.00021917,2]
[367900275,1750959042854,-460.0,0.00021917,2]
[367900277,1750959042867,-805.85,0.00021917,2]
[367900279,1750959042876,-460.0,0.00021917,2]
[367900281,1750959042886,-432.56802118,0.00021917,2]
[367900283,1750959042895,-460.0,0.00021917,2]
[367900285,1750959042904,-460.0,0.00021917,2]
[367900287,1750959042913,-646.13,0.00021917,2]
[367900289,1750959042922,-460.0,0.00021917,2]
[367900291,1750959042932,-836.86,0.00021917,2]
[367900293,1750959042941,-1491.37,0.00021917,2]
[367900295,1750959042950,-460.0,0.00021917,2]
[367900297,1750959042959,-460.0,0.00021917,2]
[367900299,1750959042968,-615.58,0.00021917,2]
[367900301,1750959042977,-547.87,0.00021917,2]
[367900303,1750959042986,-460.0,0.00021917,2]
[367900305,1750959042995,-460.0,0.00021917,2]
[367900307,1750959043005,-460.0,0.00021917,2]
[367900309,1750959043014,-460.0,0.00021917,2]
[367900311,1750959043023,-1250.14,0.00021917,2]
[367900313,1750959043032,-460.0,0.00021917,2]
[367900315,1750959043042,-460.0,0.00021917,2]
[367900317,1750959043052,-460.0,0.00021917,2]
[367900319,1750959043061,-460.0,0.00021917,2]
[367900321,1750959043071,-430.0,0.00021917,2]
[367900324,1750959043080,-460.0,0.00021917,2]
[367900326,1750959043089,-460.0,0.00021917,2]
[367900328,1750959043100,-460.0,0.00021917,2]
[367900330,1750959043108,-460.0,0.00021917,2]
[367900332,1750959043117,-460.0,0.00021917,2]
[367900334,1750959043126,-460.0,0.00021917,2]
[367900335,1750959043135,-460.0,0.00021917,2]
[367900337,1750959043144,-460.0,0.00021917,2]
[367900339,1750959043153,-460.0,0.00021917,2]
[367900341,1750959043162,-460.0,0.00021917,2]
[367900343,1750959043171,-460.0,0.00021917,2]
[367900345,1750959043180,-460.0,0.00021917,2]
[367900348,1750959043189,-460.0,0.00021917,2]
[367900351,1750959043207,-460.0,0.00021917,2]
[367900353,1750959043221,-460.0,0.00021917,2]
[367900355,1750959043232,-697.49,0.00021917,2]
[367900358,1750959043245,-489.96,0.00021917,2]
[367900360,1750959043258,-460.0,0.00021917,2]
[367900364,1750959043273,-460.0,0.00021917,2]
[367900367,1750959043287,-460.0,0.00021917,2]
[367900370,1750959043301,-460.0,0.00021917,2]
[367900372,1750959043314,-460.0,0.00021917,2]
[367900374,1750959043325,-460.0,0.00021917,2]
[367900377,1750959043337,-392.50022847,0.00021917,2]
[367900382,1750959043352,-460.0,0.00021917,2]
[367900385,1750959043366,-460.0,0.00021917,2]
[367900389,1750959043379,-460.0,0.00021917,2]
[367900393,1750959043393,-498.83,0.00021917,2]
[367900397,1750959043408,-460.0,0.00021917,2]
[367900401,1750959043421,-460.0,0.00021917,2]
[367900404,1750959043433,-196.06695826,0.00021917,2]
[367900409,1750959043448,-460.0,0.00021917,2]
[367900412,1750959043461,-460.0,0.00021917,2]
[367900416,1750959043474,-460.0,0.00021917,2]
[367900420,1750959043487,-460.0,0.00021917,2]
[367900422,1750959043499,-1189.41,0.00021917,2]
[367900425,1750959043511,-460.0,0.00021917,2]
[367900427,1750959043524,-460.0,0.00021917,2]
[367900430,1750959043537,-460.0,0.00021917,2]
[367900432,1750959043549,-460.0,0.00021917,2]
[367900434,1750959043561,-547.91,0.00021917,2]
[367900436,1750959043572,-460.0,0.00021917,2]
[367900438,1750959043583,-460.0,0.00021917,2]
[367900441,1750959043596,-489.82,0.00021917,2]
[367900444,1750959043614,-460.0,0.00021917,2]
[367900446,1750959043625,-460.0,0.00021917,2]
[367900448,1750959043635,-460.0,0.00021917,2]
[367900450,1750959043646,-460.0,0.00021917,2]
[367900453,1750959043660,-460.0,0.00021917,2]
[367900455,1750959043671,-460.0,0.00021917,2]
[367900457,1750959043681,-382.19491668,0.00021917,2]
[367900459,1750959043693,-460.0,0.00021917,2]
[367900462,1750959043705,-500.0,0.00021917,2]
[367900464,1750959043719,-430.73279694,0.00021917,2]
[367900467,1750959043731,-430.0,0.00021917,2]
[367900469,1750959043746,-460.0,0.00021917,2]
[367900471,1750959043760,-3629.3,0.00021917,2]
[367900474,1750959043772,-460.0,0.00021917,2]
[367900476,1750959043784,-460.0,0.00021917,2]
[367900478,1750959043797,-460.0,0.00021917,2]
[367900481,1750959043810,-460.0,0.00021917,2]
[367900483,1750959043822,-460.0,0.00021917,2]
[367900485,1750959043833,-462.56,0.00021917,2]
[367900487,1750959043845,-460.0,0.00021917,2]
[367900490,1750959043857,-460.0,0.00021917,2]
[367900492,1750959043873,-460.0,0.00021917,2]
[367900494,1750959043885,-460.0,0.00021917,2]
[367900497,1750959043897,-460.0,0.00021917,2]
[367900499,1750959043913,-460.0,0.00021917,2]
[367900502,1750959043925,-415.66496305,0.00021917,2]
[367900504,1750959043937,-460.0,0.00021917,2]
[367900506,1750959043952,-619.88,0.00021917,2]
[367900509,1750959043963,-460.0,0.00021917,2]
[367900511,1750959043977,-460.0,0.00021917,2]
[367900513,1750959043988,-460.0,0.00021917,2]
[367900515,1750959044000,-460.0,0.00021917,2]
[367900518,1750959044012,-466.95,0.00021917,2]
[367900520,1750959044023,-707.3,0.00021917,2]
[367900522,1750959044035,-550.74,0.00021917,2]
[367900524,1750959044050,-460.0,0.00021917,2]
[367900527,1750959044062,-460.0,0.00021917,2]
[367900529,1750959044073,-2191.66,0.00021917,2]
[367900531,1750959044084,-589.81,0.00021917,2]
[367900533,1750959044096,-460.0,0.00021917,2]
[367900536,1750959044108,-486.64,0.00021917,2]
[367900538,1750959044119,-665.96,0.00021917,2]
[367900540,1750959044131,-460.0,0.00021917,2]
[367900542,1750959044143,-535.98,0.00021917,2]
[367900545,1750959044154,-460.0,0.00021917,2]
[367900547,1750959044165,-500.0,0.00021917,2]
[367900549,1750959044177,-460.0,0.00021917,2]
[367900551,1750959044188,-460.0,0.00021917,2]
[367900554,1750959044199,-460.0,0.00021917,2]
[367900556,1750959044211,-1334.17,0.00021917,2]
[367900558,1750959044222,-505.21783726,0.00021917,2]
[367900560,1750959044234,-460.0,0.00021917,2]
[367900563,1750959044245,-460.0,0.00021917,2]
[367900565,1750959044257,-460.0,0.00021917,2]
[367900567,1750959044268,-460.0,0.00021917,2]
[367900569,1750959044280,-598.48623069,0.00021917,2]
[367900572,1750959044291,-460.0,0.00021917,2]
[367900574,1750959044303,-460.0,0.00021917,2]
[367900576,1750959044314,-440.0,0.00021917,2]
[367900578,1750959044326,-460.0,0.00021917,2]
[367900581,1750959044338,-560.46,0.00021917,2]
[367900583,1750959044350,-647.13,0.00021917,2]
[367900585,1750959044361,-460.0,0.00021917,2]
[367900587,1750959044373,-250.35656205,0.00021917,2]
[367900589,1750959044384,-460.0,0.00021917,2]
[367900592,1750959044396,-2397.01,0.00021917,2]
[367900594,1750959044407,-460.0,0.00021917,2]
[367900596,1750959044418,-358.00059963,0.00021917,2]
[367900598,1750959044429,-460.0,0.00021917,2]
[367900601,1750959044441,-460.0,0.00021917,2]
[367900603,1750959044453,-460.0,0.00021917,2]
[367900605,1750959044464,-460.0,0.00021917,2]
[367900607,1750959044477,-1163.42,0.00021917,2]
[367900610,1750959044488,-150.10202009,0.00021917,2]
[367900612,1750959044499,-460.0,0.00021917,2]
[367900614,1750959044511,-460.0,0.00021917,2]
[367900616,1750959044522,-601.32,0.00021917,2]
[367900619,1750959044534,-460.0,0.00021917,2]
[367900621,1750959044549,-668.88,0.00021917,2]
[367900623,1750959044560,-460.0,0.00021917,2]
[367900626,1750959044571,-3173.49,0.00021917,2]
[367900628,1750959044583,-460.0,0.00021917,2]
[367900630,1750959044594,-460.0,0.00021917,2]
[367900632,1750959044606,-485.14,0.00021917,2]
[367900635,1750959044617,-1074.01,0.00021917,2]
[367900637,1750959044629,-694.33,0.00021917,2]
[367900639,1750959044641,-460.0,0.00021917,2]
[367900641,1750959044651,-460.0,0.00021917,2]
[367900643,1750959044660,-1243.99,0.00021917,2]
[367900645,1750959044670,-519.67,0.00021917,2]
[367900647,1750959044679,-688.04,0.00021917,2]
[367900649,1750959044688,-567.8,0.00021917,2]
[367900651,1750959044698,-460.0,0.00021917,2]
[367900653,1750959044708,-468.87,0.00021917,2]
[367900655,1750959044717,-460.0,0.00021917,2]
[367900657,1750959044726,-460.0,0.00021917,2]
[367900683,1750959044891,-460.0,0.00021917,2]
[367900687,1750959044971,-566.88,0.00021917,2]
[367900689,1750959044983,-429.50860139,0.00021917,2]
[367900691,1750959044993,-460.0,0.00021917,2]
[367900693,1750959045003,-500.0,0.00021917,2]
[367900695,1750959045012,-1499.87,0.00021917,2]
[367900697,1750959045021,-460.0,0.00021917,2]
[367900699,1750959045031,-500.0,0.00021917,2]
[367900701,1750959045040,-500.0,0.00021917,2]
[367900703,1750959045051,-460.0,0.00021917,2]
[367900705,1750959045062,-492.18,0.00021917,2]
[367900707,1750959045071,-430.0,0.00021917,2]
[367900709,1750959045080,-460.0,0.00021917,2]
[367900711,1750959045089,-460.0,0.00021917,2]
[367900713,1750959045099,-460.0,0.00021917,2]
[367900715,1750959045109,-3219.5,0.00021917,2]
[367900717,1750959045119,-460.0,0.00021917,2]
[367900719,1750959045128,-460.0,0.00021917,2]
[367900720,1750959045137,-460.0,0.00021917,2]
[367900722,1750959045146,-460.0,0.00021917,2]
[367900724,1750959045155,-460.0,0.00021917,2]
[367900726,1750959045164,-434.3900369,0.00021917,2]
[367900728,1750959045173,-649.77,0.00021917,2]
[367900730,1750959045183,-967.31,0.00021917,2]
[367900732,1750959045192,-460.0,0.00021917,2]
[367900734,1750959045202,-460.0,0.00021917,2]
[367900736,1750959045211,-1902.0,0.00021917,2]
[367900738,1750959045221,-460.0,0.00021917,2]
[367900740,1750959045231,-460.0,0.00021917,2]
[367900742,1750959045242,-1864.12,0.00021917,2]
[367900744,1750959045252,-772.41,0.00021917,2]
[367900746,1750959045262,-2693.95,0.00021917,2]
[367900748,1750959045271,-441.22791932,0.00021917,2]
[367900750,1750959045280,-515.12,0.00021917,2]
[367900752,1750959045290,-460.0,0.00021917,2]
[367900754,1750959045301,-500.0,0.00021918,2]
[367900756,1750959045310,-500.0,0.00021918,2]
[367900758,1750959045320,-500.0,0.00021918,2]
[367900760,1750959045330,-500.0,0.00021918,2]
[367900762,1750959045340,-500.0,0.00021918,2]
[367900764,1750959045350,-546.1956516,0.00021918,2]
[367900766,1750959045359,-500.0,0.00021918,2]
[367900768,1750959045369,-500.0,0.00021918,2]
[367900770,1750959045378,-1887.910734,0.0002192,5]
[367900772,1750959045388,-1000.0,0.0002192,5]
[367900774,1750959045397,-198.72712322,0.00021926,2]
[367900776,1750959045407,-1000.0,0.0002194,5]
[367900778,1750959045416,-1000.0,0.0002194,5]
[367900780,1750959045427,-254.83480299,0.00021944,10]
[367900782,1750959045436,-1000.0,0.0002196,5]
[367900784,1750959045445,-1000.0,0.0002196,5]
[367900786,1750959045455,-500.0,0.00021973,2]
[367900788,1750959045464,-500.0,0.00021973,2]
[367900790,1750959045473,-500.0,0.00021973,2]
[367900792,1750959045482,-500.0,0.00021973,2]
[367900794,1750959045491,-500.0,0.00021973,2]
[367900796,1750959045500,-500.0,0.00021973,2]
[367900798,1750959045509,-500.0,0.00021973,2]
[367900800,1750959045520,-500.0,0.00021973,2]
[367900802,1750959045530,-500.0,0.00021973,2]
[367900804,1750959045540,-500.0,0.00021973,2]
[367900806,1750959045551,-500.0,0.00021973,2]
[367900808,1750959045560,-600.0,0.00021973,2]
[367900810,1750959045570,-500.0,0.00021973,2]
[367900812,1750959045579,-500.0,0.00021973,2]
[367900814,1750959045588,-500.0,0.00021973,2]
[367900816,1750959045598,-500.0,0.00021973,2]
[367900817,1750959045608,-500.0,0.00021973,2]
[367900819,1750959045617,-200.2532582,0.00021973,2]
[367900821,1750959045626,-580.01754329,0.00021973,2]
[367900823,1750959045636,-500.0,0.00021973,2]
[367900825,1750959045645,-366.36247253,0.00021973,2]
[367900827,1750959045654,-500.0,0.00021973,2]
[367900829,1750959045664,-500.0,0.00021973,2]
[367900831,1750959045673,-500.0,0.00021973,2]
[367900833,1750959045683,-1000.0,0.0002198,5]
[367900835,1750959045693,-1000.0,0.0002198,5]
[367900837,1750959045703,-1000.0,0.00021986,2]
[367900839,1750959045712,-500.0,0.00021986,2]
[367900841,1750959045721,-174.64107673,0.00021986,2]
[367900843,1750959045731,-200.0,0.00021999,2]
[367900845,1750959045741,-282.18117478,0.00021999,2]
[367900847,1750959045750,-1000.0,0.00021999,2]
[367900849,1750959045761,-1000.0,0.00021999,2]
[367900851,1750959045770,-1000.0,0.00021999,2]
[367900853,1750959045780,-1000.0,0.00021999,2]
[367900855,1750959045789,-446.17332533,0.00021999,2]
[367900857,1750959045801,-924.5,0.00021999,2]
[367900859,1750959045810,-805.07,0.00021999,2]
[367900861,1750959045820,-460.0,0.00021999,2]
[367900863,1750959045829,-460.0,0.00021999,2]
[367900865,1750959045839,-1730.61,0.00021999,2]